[Event "Schachfestival Open-B 2018"]
[Site "Lueneburg"]
[Date "2018.07.07"]
[Round "1"]
[White "Simone, Fruebing"]
[Black "Reuter, Marek"]
[Result "1/2-1/2"]
[ECO "D31"]
[WhiteElo "1775"]
[BlackElo "1604"]
[Annotator "NA"]
[PlyCount "44"]
[EventDate "2018.07.06"]
[EventType "swiss"]
[EventCountry "GER"]
[SourceTitle "playchess.com"]
[Source "ChessBase"]
[SourceQuality "1"]
[TimeControl "40/5400+30:1800+30"]

1. d4 {[%emt 0:00:00]} d5 {[%emt 0:00:00]} 2. c4 {[%emt 0:00:03]} e6 {[%emt 0:00:00]} 3. Nc3 {[%emt 0:00:21]} c6 {[%emt 0:00:00]} 4. e3 {[%emt 0:03:36]} Bd6 {[%emt 0:01:17]} 5. Nf3 {[%emt 0:03:16]} f5 {[%emt 0:00:23]} 6. h4 {[%emt 0:04:12]} Nd7 {[%emt 0:01:54]} 7. c5 {[%emt 0:03:25]} Bc7 {[%emt 0:00:04]} 8. Bd3 {[%emt 0:01:20]} Ngf6 {[%emt 0:00:23]} 9. Ng5 {[%emt 0:02:59]} Qe7 {[%emt 0:03:40]} 10. f4 {[%emt 0:03:24]} h6 {[%emt 0:00:13]} 11. Nf3 {[%emt 0:01:31]} Ne4 {[%emt 0:00:21]} 12. h5 {[%emt 0:04:26]} Ndf6 {[%emt 0:01:45]} 13. Bxe4 {[%emt 0:03:20]} dxe4 {[%emt 0:00:48]} 14. Nh4 {[%emt 0:01:16]} Qd8 {[%emt 0:02:07]} 15. Ng6 {[%emt 0:03:01]} Rh7 {[%emt 0:00:23]} 16. Bd2 {[%emt 0:03:41]} Kf7 {[%emt 0:00:16]} 17. Qe2 {[%emt 0:07:08]} Bd7 {[%emt 0:01:29]} 18. O-O-O {[%emt 0:11:36]} b5 {[%emt 0:00:35]} 19. Ne5+ {[%emt 0:01:09]} Bxe5 {[%emt 0:00:30]} 20. dxe5 {[%emt 0:04:01]} Nd5 {[%emt 0:00:07]} 21. Nxd5 {[%emt 0:01:38]} cxd5 {[%emt 0:00:42]} 22. g4 {[%emt 0:02:23]} a5 {[%emt 0:00:41]} 1/2-1/2

[Event "Schachfestival Open-B 2018"]
[Site "Lueneburg"]
[Date "2018.07.07"]
[Round "1"]
[White "Eckhard, Suliga"]
[Black "Hinke, Gerhard"]
[Result "1-0"]
[ECO "C14"]
[WhiteElo "1749"]
[BlackElo "1593"]
[Annotator "NA"]
[PlyCount "103"]
[EventDate "2018.07.06"]
[EventType "swiss"]
[EventCountry "GER"]
[SourceTitle "playchess.com"]
[Source "ChessBase"]
[SourceQuality "1"]
[TimeControl "40/5400+30:1800+30"]

1. e4 {[%emt 0:00:00]} e6 {[%emt 0:00:00]} 2. d4 {[%emt 0:00:00]} d5 {[%emt 0:00:00]} 3. Nc3 {[%emt 0:00:00]} Nf6 {[%emt 0:00:07]} 4. Bg5 {[%emt 0:00:23]} Be7 {[%emt 0:00:38]} 5. e5 {[%emt 0:00:39]} Nfd7 {[%emt 0:00:14]} 6. Bxe7 {[%emt 0:00:09]} Qxe7 {[%emt 0:00:14]} 7. f4 {[%emt 0:00:10]} a6 {[%emt 0:00:42]} 8. Nf3 {[%emt 0:00:14]} c5 {[%emt 0:00:48]} 9. dxc5 {[%emt 0:00:18]} Nxc5 {[%emt 0:01:01]} 10. Bd3 {[%emt 0:00:48]} Bd7 {[%emt 0:01:09]} 11. O-O {[%emt 0:05:40]} Nxd3 {[%emt 0:00:51]} 12. cxd3 {[%emt 0:01:56]} Nc6 {[%emt 0:05:55]} 13. Qd2 {[%emt 0:12:26]} g6 {[%emt 0:08:40]} 14. Kh1 {[%emt 0:01:55]} b5 {[%emt 0:01:29]} 15. a3 {[%emt 0:06:48]} Na5 {[%emt 0:06:25]} 16. Nxd5 {[%emt 0:07:44]} exd5 {[%emt 0:02:50]} 17. Qxa5 {[%emt 0:00:12]} O-O {[%emt 0:00:31]} 18. Rac1 {[%emt 0:02:18]} Rfc8 {[%emt 0:01:57]} 19. Rxc8+ {[%emt 0:04:48]} Rxc8 {[%emt 0:01:48]} 20. Qxa6 {[%emt 0:14:30]} Qc5 {[%emt 0:02:54]} 21. Qd6 {[%emt 0:01:49]} Bf5 {[%emt 0:06:45]} 22. Qxc5 {[%emt 0:06:32]} Rxc5 {[%emt 0:00:12]} 23. d4 {[%emt 0:01:25]} Rc2 {[%emt 0:00:20]} 24. b4 {[%emt 0:00:57]} h6 {[%emt 0:00:41]} 25. Ra1 {[%emt 0:05:13]} Kf8 {[%emt 0:01:43]} 26. Kg1 {[%emt 0:01:16]} Ke7 {[%emt 0:02:54]} 27. a4 {[%emt 0:00:16]} bxa4 {[%emt 0:01:02]} 28. Rxa4 {[%emt 0:00:09]} Rb2 {[%emt 0:01:42]} 29. Ra7+ {[%emt 0:02:17]} Ke6 {[%emt 0:02:26]} 30. Rb7 {[%emt 0:00:21]} Bd3 {[%emt 0:00:45]} 31. h3 {[%emt 0:01:44]} Bc4 {[%emt 0:01:27]} 32. Kh2 {[%emt 0:00:17]} Be2 {[%emt 0:01:53]} 33. Kg3 {[%emt 0:00:17]} Rb3 {[%emt 0:01:15]} 34. h4 {[%emt 0:03:22]} Bd3 {[%emt 0:02:31]} 35. Kf2 {[%emt 0:04:39]} Be4 {[%emt 0:03:41]} 36. b5 {[%emt 0:01:32]} Rb2+ {[%emt 0:00:40]} 37. Kg3 {[%emt 0:00:28]} Rb3 {[%emt 0:01:58]} 38. b6 {[%emt 0:00:06]} Rb1 {[%emt 0:02:41]} 39. Rb8 {[%emt 0:00:14]} Kd7 {[%emt 0:02:04]} 40. b7 {[%emt 0:06:50]} Kc7 {[%emt 0:02:00]} 41. Rf8 {[%emt 0:30:15]} Kxb7 {[%emt 0:35:57]} 42. Rxf7+ {[%emt 0:00:07]} Kc6 {[%emt 0:00:10]} 43. Nd2 {[%emt 0:01:40]} Rb8 {[%emt 0:00:58]} 44. Nxe4 {[%emt 0:00:20]} dxe4 {[%emt 0:00:14]} 45. Kf2 {[%emt 0:03:39]} Kd5 {[%emt 0:00:25]} 46. Rd7+ {[%emt 0:00:01]} Ke6 {[%emt 0:00:30]} 47. Rd6+ {[%emt 0:01:27]} Kf5 {[%emt 0:02:09]} 48. Rf6+ {[%emt 0:00:27]} Kg4 {[%emt 0:00:29]} 49. d5 {[%emt 0:00:54]} Rb3 {[%emt 0:00:47]} 50. e6 {[%emt 0:01:23]} g5 {[%emt 0:01:55]} 51. e7 {[%emt 0:00:30]} Rb8 {[%emt 0:00:39]} 52. Rf8 {[%emt 0:00:12]} 1-0

[Event "Schachfestival Open-B 2018"]
[Site "Lueneburg"]
[Date "2018.07.07"]
[Round "1"]
[White "Schencke, Guenther"]
[Black "Seeber, Helmut"]
[Result "1/2-1/2"]
[ECO "D41"]
[WhiteElo "1728"]
[BlackElo "1580"]
[Annotator "NA"]
[PlyCount "73"]
[EventDate "2018.07.06"]
[EventType "swiss"]
[EventCountry "GER"]
[SourceTitle "playchess.com"]
[Source "ChessBase"]
[SourceQuality "1"]
[TimeControl "40/5400+30:1800+30"]

1. d4 {[%emt 0:00:00]} d5 {[%emt 0:00:00]} 2. Nf3 {[%emt 0:00:00]} c5 {[%emt 0:00:00]} 3. e3 {[%emt 0:00:12]} e6 {[%emt 0:00:00]} 4. c4 {[%emt 0:00:16]} Nf6 {[%emt 0:00:49]} 5. cxd5 {[%emt 0:00:41]} Nxd5 {[%emt 0:01:20]} 6. Nc3 {[%emt 0:00:38]} Be7 {[%emt 0:00:35]} 7. dxc5 {[%emt 0:02:52]} Bxc5 {[%emt 0:14:05]} 8. Nxd5 {[%emt 0:00:52]} exd5 {[%emt 0:00:19]} 9. Bd2 {[%emt 0:00:40]} O-O {[%emt 0:00:37]} 10. Bc3 {[%emt 0:00:18]} Be6 {[%emt 0:02:42]} 11. Bd3 {[%emt 0:01:45]} Nd7 {[%emt 0:00:40]} 12. Qc2 {[%emt 0:04:11]} h6 {[%emt 0:00:41]} 13. O-O {[%emt 0:00:06]} Rc8 {[%emt 0:01:02]} 14. Rac1 {[%emt 0:02:13]} Nf6 {[%emt 0:00:19]} 15. Qe2 {[%emt 0:01:53]} Re8 {[%emt 0:01:14]} 16. Bd4 {[%emt 0:01:23]} Bxd4 {[%emt 0:02:50]} 17. Nxd4 {[%emt 0:00:05]} Bg4 {[%emt 0:01:32]} 18. Qe1 {[%emt 0:07:47]} Qb6 {[%emt 0:04:54]} 19. Rxc8 {[%emt 0:06:16]} Rxc8 {[%emt 0:00:15]} 20. Qb1 {[%emt 0:00:11]} Be6 {[%emt 0:04:35]} 21. Rc1 {[%emt 0:00:30]} Ne4 {[%emt 0:01:53]} 22. Rxc8+ {[%emt 0:00:36]} Bxc8 {[%emt 0:00:17]} 23. Qc2 {[%emt 0:00:51]} Nd6 {[%emt 0:02:24]} 24. Nb5 {[%emt 0:10:52]} Be6 {[%emt 0:02:44]} 25. Nd4 {[%emt 0:04:03]} Qa5 {[%emt 0:02:47]} 26. b3 {[%emt 0:04:40]} Qe1+ 27. Bf1 Bg4 {[%emt 0:06:36]} 28. Nf3 {[%emt 0:05:13]} Qa1 {[%emt 0:02:18]} 29. h3 {[%emt 0:03:35]} Bf5 {[%emt 0:00:58]} 30. Qe2 {[%emt 0:03:29]} Ne4 {[%emt 0:03:59]} 31. Nd4 Nc3 {[%emt 0:01:20]} 32. Qd2 {[%emt 0:04:06]} Ne4 {[%emt 0:03:16]} 33. Qe2 {[%emt 0:01:36]} Nc3 34. Qc2 Ne4 35. Qe2 Nc3 36. Qd2 Ne4 37. Qe2 1/2-1/2

[Event "Schachfestival Open-B 2018"]
[Site "Lueneburg"]
[Date "2018.07.07"]
[Round "1"]
[White "Petrosyan, Tigran"]
[Black "Rausch, Darius"]
[Result "0-1"]
[ECO "A05"]
[WhiteElo "1609"]
[BlackElo "1776"]
[Annotator "NA"]
[PlyCount "46"]
[EventDate "2018.07.06"]
[EventType "swiss"]
[EventCountry "GER"]
[SourceTitle "playchess.com"]
[Source "ChessBase"]
[SourceQuality "1"]
[TimeControl "40/5400+30:1800+30"]

1. Nf3 {[%emt 0:00:00]} Nf6 {[%emt 0:00:00]} 2. e3 {[%emt 0:00:00]} g6 {[%emt 0:00:00]} 3. c4 {[%emt 0:00:00]} Bg7 {[%emt 0:00:00]} 4. Nc3 {[%emt 0:00:00]} d6 {[%emt 0:00:01]} 5. Be2 {[%emt 0:00:13]} O-O {[%emt 0:00:15]} 6. O-O {[%emt 0:00:05]} e5 {[%emt 0:00:13]} 7. d4 {[%emt 0:00:11]} Nbd7 {[%emt 0:00:50]} 8. b3 {[%emt 0:01:26]} Re8 {[%emt 0:00:19]} 9. Bb2 {[%emt 0:00:05]} e4 {[%emt 0:01:49]} 10. Nd2 {[%emt 0:00:17]} Nf8 {[%emt 0:00:17]} 11. Qc2 {[%emt 0:00:08]} Bf5 {[%emt 0:00:27]} 12. h3 {[%emt 0:00:23]} h5 {[%emt 0:00:40]} 13. Na4 {[%emt 0:04:26]} N8h7 {[%emt 0:02:26]} 14. c5 {[%emt 0:00:19]} d5 {[%emt 0:01:44]} 15. Rfe1 {[%emt 0:02:06]} h4 {[%emt 0:11:05]} 16. Nf1 {[%emt 0:02:29]} Qc8 {[%emt 0:12:39]} 17. Kh2 {[%emt 0:00:28]} Ng5 {[%emt 0:04:50]} 18. g4 {[%emt 0:06:26]} hxg3+ {[%emt 0:01:56]} 19. Nxg3 {[%emt 0:00:29]} Bxh3 {[%emt 0:01:09]} 20. Nc3 {[%emt 0:00:53]} Bg2 {[%emt 0:04:11]} 21. Qd1 {[%emt 0:09:33]} Qh3+ {[%emt 0:06:14]} 22. Kg1 {[%emt 0:00:10]} Nf3+ {[%emt 0:00:20]} 23. Bxf3 {[%emt 0:00:07]} Bxf3 {[%emt 0:00:11]} 0-1

[Event "Schachfestival Open-B 2018"]
[Site "Lueneburg"]
[Date "2018.07.07"]
[Round "1"]
[White "Matthies, Alexander"]
[Black "Cremerius, Armin"]
[Result "1-0"]
[ECO "C01"]
[WhiteElo "1599"]
[BlackElo "1759"]
[Annotator "NA"]
[PlyCount "41"]
[EventDate "2018.07.06"]
[EventType "swiss"]
[EventCountry "GER"]
[SourceTitle "playchess.com"]
[Source "ChessBase"]
[SourceQuality "1"]
[TimeControl "40/5400+30:1800+30"]

1. e4 {[%emt 0:00:00]} e6 {[%emt 0:00:00]} 2. d4 {[%emt 0:00:00]} d5 {[%emt 0:00:04]} 3. exd5 {[%emt 0:00:00]} exd5 {[%emt 0:00:15]} 4. Bd3 {[%emt 0:00:27]} Nf6 {[%emt 0:01:00]} 5. Ne2 {[%emt 0:03:25]} Bd6 {[%emt 0:01:57]} 6. O-O {[%emt 0:00:53]} c6 {[%emt 0:37:08]} 7. Bf4 {[%emt 0:05:51]} Be6 {[%emt 0:01:42]} 8. c3 {[%emt 0:02:50]} Qc7 {[%emt 0:01:03]} 9. Bxd6 {[%emt 0:04:53]} Qxd6 {[%emt 0:01:05]} 10. Ng3 {[%emt 0:02:02]} Nbd7 {[%emt 0:06:41]} 11. Re1 {[%emt 0:10:00]} O-O-O {[%emt 0:00:54]} 12. Nd2 {[%emt 0:06:22]} g6 {[%emt 0:03:42]} 13. Qa4 {[%emt 0:11:54]} Kb8 {[%emt 0:00:34]} 14. Nf3 {[%emt 0:01:23]} Nb6 {[%emt 0:01:45]} 15. Qc2 {[%emt 0:00:59]} h5 {[%emt 0:05:54]} 16. Ng5 {[%emt 0:12:29]} h4 {[%emt 0:08:17]} 17. Nf1 {[%emt 0:04:34]} Ne4 {[%emt 0:13:53]} 18. Nxe6 {[%emt 0:10:54]} fxe6 {[%emt 0:00:50]} 19. Bxe4 {[%emt 0:00:21]} dxe4 {[%emt 0:00:18]} 20. Qxe4 {[%emt 0:00:22]} Qd5 {[%emt 0:04:49]} 21. Qxe6 1-0

[Event "Schachfestival Open-B 2018"]
[Site "Lueneburg"]
[Date "2018.07.07"]
[Round "1"]
[White "Schmidt, Johannes"]
[Black "Kaesemann, Holger, Dr."]
[Result "0-1"]
[ECO "A41"]
[WhiteElo "1589"]
[BlackElo "1746"]
[Annotator "NA"]
[PlyCount "50"]
[EventDate "2018.07.06"]
[EventType "swiss"]
[EventCountry "GER"]
[SourceTitle "playchess.com"]
[Source "ChessBase"]
[SourceQuality "1"]
[TimeControl "40/5400+30:1800+30"]

1. d4 {[%emt 0:00:00]} d6 {[%emt 0:01:29]} 2. Nf3 {[%emt 0:00:13]} Nf6 {[%emt 0:00:27]} 3. Bf4 {[%emt 0:00:12]} Nbd7 {[%emt 0:01:20]} 4. e3 {[%emt 0:00:13]} g6 {[%emt 0:00:27]} 5. c3 {[%emt 0:00:12]} Bg7 {[%emt 0:00:15]} 6. Bd3 {[%emt 0:00:48]} O-O {[%emt 0:02:43]} 7. O-O {[%emt 0:00:20]} c5 {[%emt 0:00:20]} 8. Nbd2 {[%emt 0:00:18]} Nh5 {[%emt 0:01:44]} 9. Bg5 {[%emt 0:03:53]} h6 {[%emt 0:03:04]} 10. Bh4 {[%emt 0:01:08]} Kh8 {[%emt 0:04:05]} 11. g4 {[%emt 0:08:11]} Nhf6 {[%emt 0:04:37]} 12. g5 {[%emt 0:03:20]} Nh7 {[%emt 0:02:13]} 13. Ne4 {[%emt 0:03:12]} b6 {[%emt 0:05:53]} 14. gxh6 Bf6 {[%emt 0:09:28]} 15. Nxf6 {[%emt 0:14:54]} Ndxf6 {[%emt 0:00:42]} 16. c4 {[%emt 0:00:54]} Bg4 {[%emt 0:06:33]} 17. Be2 {[%emt 0:01:53]} Qc8 {[%emt 0:02:28]} 18. Ne1 {[%emt 0:05:51]} Bh3 {[%emt 0:02:07]} 19. Ng2 {[%emt 0:00:17]} Qf5 {[%emt 0:13:40]} 20. e4 {[%emt 0:02:00]} Qd7 {[%emt 0:06:20]} 21. Bf3 {[%emt 0:01:40]} Rad8 {[%emt 0:00:56]} 22. Re1 {[%emt 0:02:18]} g5 {[%emt 0:01:15]} 23. Bg3 {[%emt 0:01:58]} g4 {[%emt 0:01:12]} 24. Nf4 {[%emt 0:01:44]} gxf3 {[%emt 0:01:05]} 25. Qxf3 cxd4 0-1

[Event "Schachfestival Open-B 2018"]
[Site "Lueneburg"]
[Date "2018.07.08"]
[Round "2"]
[White "Rausch, Darius"]
[Black "Bahr, Arne"]
[Result "1-0"]
[ECO "B06"]
[WhiteElo "1776"]
[BlackElo "1674"]
[Annotator "NA"]
[PlyCount "75"]
[EventDate "2018.07.06"]
[EventType "swiss"]
[EventCountry "GER"]
[SourceTitle "playchess.com"]
[Source "ChessBase"]
[SourceQuality "1"]
[TimeControl "40/5400+30:1800+30"]

1. e4 {[%emt 0:00:00]} g6 {[%emt 0:00:00]} 2. d4 {[%emt 0:00:00]} Nf6 {[%emt 0:00:00]} 3. Nc3 {[%emt 0:00:00]} d5 {[%emt 0:00:00]} 4. e5 {[%emt 0:00:00]} Nh5 {[%emt 0:00:00]} 5. Be2 {[%emt 0:00:00]} Nc6 {[%emt 0:00:01]} 6. Be3 {[%emt 0:00:00]} Ng7 {[%emt 0:00:14]} 7. f4 {[%emt 0:00:01]} h5 {[%emt 0:00:34]} 8. Nf3 {[%emt 0:01:22]} Bf5 {[%emt 0:14:24]} 9. a3 {[%emt 0:01:38]} Qd7 {[%emt 0:04:17]} 10. Qd2 {[%emt 0:02:20]} Bg4 {[%emt 0:23:27]} 11. h3 {[%emt 0:03:12]} Bxf3 {[%emt 0:04:00]} 12. Bxf3 {[%emt 0:00:18]} e6 {[%emt 0:00:59]} 13. g4 {[%emt 0:05:41]} hxg4 {[%emt 0:03:50]} 14. hxg4 {[%emt 0:00:05]} Rxh1+ {[%emt 0:00:48]} 15. Bxh1 {[%emt 0:00:07]} O-O-O {[%emt 0:05:59]} 16. Bf3 {[%emt 0:21:01]} Be7 {[%emt 0:01:44]} 17. Qh2 {[%emt 0:00:26]} Na5 {[%emt 0:09:37]} 18. Be2 {[%emt 0:04:53]} Nc4 {[%emt 0:05:18]} 19. Bxc4 {[%emt 0:03:13]} dxc4 {[%emt 0:00:02]} 20. Qh7 {[%emt 0:00:24]} Bf8 {[%emt 0:02:05]} 21. Qh1 {[%emt 0:07:22]} c6 {[%emt 0:05:16]} 22. O-O-O {[%emt 0:01:27]} Ne8 {[%emt 0:01:37]} 23. Ne4 {[%emt 0:13:04]} Qd5 {[%emt 0:07:14]} 24. Ng5 {[%emt 0:19:27]} c3 {[%emt 0:03:07]} 25. Qxd5 {[%emt 0:02:46]} cxb2+ {[%emt 0:00:24]} 26. Kxb2 {[%emt 0:00:06]} Rxd5 {[%emt 0:01:06]} 27. Nxf7 {[%emt 0:01:02]} Rb5+ {[%emt 0:01:31]} 28. Ka2 {[%emt 0:00:50]} Nc7 {[%emt 0:00:43]} 29. c4 {[%emt 0:01:02]} Ra5 {[%emt 0:00:33]} 30. Rd3 {[%emt 0:00:39]} Kd7 {[%emt 0:01:26]} 31. Nh8 {[%emt 0:04:23]} b5 {[%emt 0:00:39]} 32. Nxg6 {[%emt 0:01:48]} bxc4 {[%emt 0:00:44]} 33. Nxf8+ {[%emt 0:00:07]} Ke8 {[%emt 0:00:30]} 34. Rc3 {[%emt 0:03:29]} Nd5 {[%emt 0:00:43]} 35. Bd2 {[%emt 0:00:20]} Ra4 {[%emt 0:02:21]} 36. Nxe6 {[%emt 0:00:39]} Nxc3+ 37. Bxc3 {[%emt 0:00:08]} Ke7 {[%emt 0:02:23]} 38. Nc5 {[%emt 0:00:05]} 1-0

[Event "Schachfestival Open-B 2018"]
[Site "Lueneburg"]
[Date "2018.07.08"]
[Round "2"]
[White "Kaesemann, Holger Dr."]
[Black "Turp, Huseyin"]
[Result "1-0"]
[ECO "B12"]
[WhiteElo "1746"]
[BlackElo "1630"]
[Annotator "NA"]
[PlyCount "173"]
[EventDate "2018.07.06"]
[EventType "swiss"]
[EventCountry "GER"]
[SourceTitle "playchess.com"]
[Source "ChessBase"]
[SourceQuality "1"]
[TimeControl "40/5400+30:1800+30"]

1. e4 {[%emt 0:00:00]} c6 {[%emt 0:05:32]} 2. d4 {[%emt 0:00:16]} d5 {[%emt 0:01:17]} 3. e5 {[%emt 0:00:38]} Bf5 {[%emt 0:00:21]} 4. Nf3 {[%emt 0:00:35]} e6 {[%emt 0:00:11]} 5. c3 {[%emt 0:00:28]} Nd7 {[%emt 0:00:52]} 6. Qb3 {[%emt 0:02:49]} Qc8 {[%emt 0:02:02]} 7. Nh4 {[%emt 0:01:04]} Bg6 {[%emt 0:00:17]} 8. Nxg6 {[%emt 0:00:11]} hxg6 {[%emt 0:00:25]} 9. Nd2 {[%emt 0:03:15]} a6 {[%emt 0:00:10]} 10. f4 {[%emt 0:01:32]} c5 {[%emt 0:00:21]} 11. Nf3 {[%emt 0:00:45]} cxd4 {[%emt 0:00:25]} 12. cxd4 {[%emt 0:00:45]} Ne7 {[%emt 0:00:53]} 13. Bd2 {[%emt 0:01:31]} Nc6 {[%emt 0:00:18]} 14. Rc1 {[%emt 0:00:54]} Be7 {[%emt 0:01:32]} 15. Bd3 {[%emt 0:00:55]} Bh4+ {[%emt 0:01:48]} 16. Nxh4 {[%emt 0:04:14]} Rxh4 {[%emt 0:00:13]} 17. O-O {[%emt 0:05:30]} Qb8 {[%emt 0:04:03]} 18. Be3 {[%emt 0:06:45]} Qa7 {[%emt 0:04:15]} 19. Qc3 {[%emt 0:02:07]} Rc8 {[%emt 0:01:32]} 20. b3 {[%emt 0:04:12]} Qb6 {[%emt 0:00:47]} 21. Qe1 {[%emt 0:04:53]} Qd8 {[%emt 0:03:43]} 22. Qg3 {[%emt 0:01:43]} Rh8 {[%emt 0:02:17]} 23. Rf2 {[%emt 0:13:11]} Qh4 {[%emt 0:00:28]} 24. Qxh4 {[%emt 0:04:20]} Rxh4 {[%emt 0:00:28]} 25. g3 {[%emt 0:00:03]} Rh8 {[%emt 0:00:44]} 26. Rfc2 {[%emt 0:00:55]} Ndb8 {[%emt 0:00:59]} 27. b4 {[%emt 0:01:15]} Kd7 {[%emt 0:01:04]} 28. a3 {[%emt 0:03:10]} Ne7 {[%emt 0:01:58]} 29. Rc5 {[%emt 0:03:53]} Rxc5 {[%emt 0:01:04]} 30. bxc5 {[%emt 0:00:08]} Nf5 {[%emt 0:02:17]} 31. Bxf5 {[%emt 0:07:27]} gxf5 {[%emt 0:01:52]} 32. h4 {[%emt 0:00:08]} Nc6 {[%emt 0:03:21]} 33. Rb1 {[%emt 0:00:58]} Rb8 {[%emt 0:01:46]} 34. Kf2 {[%emt 0:00:33]} Kc7 {[%emt 0:00:02]} 35. Ke2 {[%emt 0:02:07]} b6 {[%emt 0:01:09]} 36. cxb6+ {[%emt 0:06:58]} Rxb6 {[%emt 0:00:14]} 37. Rc1 {[%emt 0:06:17]} Rb3 {[%emt 0:01:06]} 38. Ra1 {[%emt 0:00:41]} Na5 {[%emt 0:00:45]} 39. Kf2 {[%emt 0:08:35]} Nc4 {[%emt 0:00:14]} 40. Bc1 {[%emt 0:00:30]} Rd3 {[%emt 0:01:51]} 41. a4 {[%emt 0:30:58]} Rxd4 {[%emt 0:31:07]} 42. Ke2 {[%emt 0:01:10]} Re4+ {[%emt 0:00:34]} 43. Kf2 {[%emt 0:01:43]} Nb6 {[%emt 0:01:04]} 44. a5 {[%emt 0:00:27]} Nd7 {[%emt 0:00:59]} 45. Ba3 {[%emt 0:00:11]} Rc4 {[%emt 0:03:35]} 46. Bd6+ {[%emt 0:01:06]} Kc6 {[%emt 0:00:33]} 47. h5 {[%emt 0:00:00]} f6 {[%emt 0:00:00]} 48. Rb1 {[%emt 0:00:00]} fxe5 {[%emt 0:00:00]} 49. Bxe5 {[%emt 0:00:00]} Nxe5 {[%emt 0:00:00]} 50. fxe5 {[%emt 0:00:00]} Kc7 {[%emt 0:00:00]} 51. Rb6 {[%emt 0:00:00]} Rc6 {[%emt 0:00:00]} 52. Rb4 {[%emt 0:00:00]} Kc8 {[%emt 0:00:00]} 53. Ke3 {[%emt 0:00:00]} Rc7 {[%emt 0:00:00]} 54. Rb6 {[%emt 0:00:00]} Rc3+ {[%emt 0:00:00]} 55. Kf4 {[%emt 0:00:00]} Rc4+ {[%emt 0:00:00]} 56. Kf3 {[%emt 0:00:00]} Kd7 {[%emt 0:00:00]} 57. Rxa6 {[%emt 0:00:00]} Rc7 {[%emt 0:00:00]} 58. Rd6+ {[%emt 0:00:00]} Ke7 {[%emt 0:00:00]} 59. a6 {[%emt 0:00:00]} Ra7 {[%emt 0:00:00]} 60. Rb6 {[%emt 0:00:00]} Kd7 {[%emt 0:00:00]} 61. Kf4 {[%emt 0:00:00]} Rc7 {[%emt 0:00:00]} 62. Kg5 {[%emt 0:00:00]} Rc3 {[%emt 0:00:00]} 63. Kf4 {[%emt 0:00:00]} Rc4+ {[%emt 0:00:00]} 64. Kf3 {[%emt 0:00:00]} Ra4 {[%emt 0:00:00]} 65. Rb7+ {[%emt 0:00:00]} Kc6 {[%emt 0:00:00]} 66. Rxg7 {[%emt 0:00:00]} Rxa6 {[%emt 0:00:00]} 67. h6 {[%emt 0:00:00]} Ra8 {[%emt 0:00:00]} 68. h7 {[%emt 0:00:00]} Rh8 {[%emt 0:00:00]} 69. Kf4 {[%emt 0:00:00]} d4 {[%emt 0:00:00]} 70. Re7 {[%emt 0:00:00]} Kd5 {[%emt 0:00:00]} 71. Rd7+ {[%emt 0:00:00]} Kc4 {[%emt 0:00:00]} 72. Rc7+ {[%emt 0:00:00]} Kd3 {[%emt 0:00:00]} 73. Kg5 {[%emt 0:00:00]} Ke4 {[%emt 0:00:33]} 74. Kf6 {[%emt 0:00:00]} d3 {[%emt 0:03:09]} 75. Rd7 {[%emt 0:00:00]} Ke3 {[%emt 0:00:21]} 76. Kg7 {[%emt 0:00:00]} Re8 {[%emt 0:01:34]} 77. h8=Q {[%emt 0:00:13]} Rxh8 {[%emt 0:00:26]} 78. Kxh8 {[%emt 0:00:09]} Ke4 {[%emt 0:02:28]} 79. Kg7 {[%emt 0:00:21]} Kxe5 {[%emt 0:00:07]} 80. Rxd3 {[%emt 0:00:12]} Ke4 {[%emt 0:00:08]} 81. Rd6 {[%emt 0:01:04]} Kf3 {[%emt 0:01:09]} 82. Rxe6 {[%emt 0:00:14]} Kxg3 {[%emt 0:00:03]} 83. Rg6+ {[%emt 0:01:03]} Kf3 {[%emt 0:02:53]} 84. Kf6 {[%emt 0:01:04]} f4 {[%emt 0:00:08]} 85. Kf5 {[%emt 0:01:10]} Ke3 {[%emt 0:00:48]} 86. Re6+ {[%emt 0:00:10]} Kf3 {[%emt 0:00:31]} 87. Re4 {[%emt 0:00:11]} 1-0

[Event "Schachfestival Open-B 2018"]
[Site "Lueneburg"]
[Date "2018.07.08"]
[Round "2"]
[White "Harig, Wolfram"]
[Black "Kolhoff, Manfred"]
[Result "1/2-1/2"]
[ECO "C01"]
[WhiteElo "1724"]
[BlackElo "1623"]
[Annotator "NA"]
[PlyCount "60"]
[EventDate "2018.07.06"]
[EventType "swiss"]
[EventCountry "GER"]
[SourceTitle "playchess.com"]
[Source "ChessBase"]
[SourceQuality "1"]
[TimeControl "40/5400+30:1800+30"]

1. e4 {[%emt 0:04:50]} e6 {[%emt 0:00:00]} 2. d4 {[%emt 0:00:05]} d5 {[%emt 0:00:00]} 3. exd5 {[%emt 0:00:05]} exd5 {[%emt 0:00:00]} 4. Nf3 {[%emt 0:00:20]} Nf6 {[%emt 0:00:19]} 5. Bg5 {[%emt 0:00:25]} Be7 {[%emt 0:01:12]} 6. Nbd2 {[%emt 0:00:57]} O-O {[%emt 0:00:47]} 7. c4 {[%emt 0:01:39]} c6 {[%emt 0:01:09]} 8. Rc1 {[%emt 0:01:30]} Bf5 {[%emt 0:05:44]} 9. Qb3 {[%emt 0:02:38]} Qb6 {[%emt 0:12:51]} 10. Qxb6 {[%emt 0:04:25]} axb6 {[%emt 0:00:06]} 11. a3 {[%emt 0:00:20]} Re8 {[%emt 0:00:53]} 12. Be2 {[%emt 0:02:44]} Bd8 {[%emt 0:02:30]} 13. Ne5 {[%emt 0:00:57]} Nbd7 {[%emt 0:03:51]} 14. Ndf3 {[%emt 0:03:34]} Nxe5 {[%emt 0:04:23]} 15. dxe5 {[%emt 0:00:57]} Nd7 {[%emt 0:00:53]} 16. cxd5 {[%emt 0:01:04]} cxd5 {[%emt 0:01:46]} 17. Bxd8 {[%emt 0:00:33]} Raxd8 {[%emt 0:00:16]} 18. O-O {[%emt 0:03:57]} Nxe5 {[%emt 0:01:23]} 19. Nd4 {[%emt 0:00:31]} Be6 {[%emt 0:03:46]} 20. Rfe1 {[%emt 0:15:02]} Ng6 {[%emt 0:03:24]} 21. g3 {[%emt 0:03:24]} Rc8 {[%emt 0:05:33]} 22. f4 {[%emt 0:01:50]} Rxc1 {[%emt 0:01:13]} 23. Rxc1 {[%emt 0:00:02]} Rc8 {[%emt 0:06:23]} 24. Rxc8+ {[%emt 0:00:01]} Bxc8 {[%emt 0:00:07]} 25. Bf3 {[%emt 0:00:15]} Ne7 {[%emt 0:00:37]} 26. Nb5 {[%emt 0:00:34]} Bd7 {[%emt 0:05:27]} 27. Nd4 {[%emt 0:00:12]} Nc6 {[%emt 0:02:48]} 28. Nb5 {[%emt 0:02:09]} Ne7 {[%emt 0:00:41]} 29. Nd4 {[%emt 0:00:07]} Nc6 {[%emt 0:05:46]} 30. Nb5 {[%emt 0:00:29]} Ne7 {[%emt 0:00:05]} 1/2-1/2